bitfinex/quotes_BTCUSD_20230115
["timestamp","ask_amount","ask_price","bid_price","bid_amount"]
[1673780978984,0.96670458,20693.0,20691.0,0.38537099]
[1673780979244,0.967468,20694.0,20691.0,0.80390809]
[1673780979742,0.49738326,20693.0,20691.0,0.80390809]
[1673780979981,1.46407294,20693.0,20691.0,0.80390809]
[1673780980235,0.49738326,20693.0,20691.0,0.80390809]
[1673780980487,0.49738326,20693.0,20691.0,0.72390809]
[1673780980741,0.50138326,20693.0,20691.0,0.77490809]
[1673780981237,0.004,20693.0,20692.0,0.07749081]
[1673780981491,0.004,20693.0,20692.0,0.29765911]
[1673780981993,0.83999645,20695.0,20692.0,0.29765911]
[1673780982244,0.007,20693.0,20692.0,0.29765911]
[1673780982492,0.83999645,20695.0,20692.0,0.29765911]
[1673780982743,0.966681,20694.0,20692.0,0.2201683]
[1673780983024,1.42625328,20694.0,20692.0,0.2201683]
[1673780983320,0.45957228,20694.0,20692.0,0.2201683]
[1673780983568,0.003,20693.0,20692.0,0.37537124]
[1673780983819,0.42011325,20695.0,20692.0,0.32437124]
[1673780984077,0.96967576,20694.0,20692.0,0.37537124]
[1673780984319,0.003,20694.0,20692.0,0.37537124]
[1673780984592,0.003,20694.0,20693.0,0.11972013]
[1673780984859,0.3915,20696.0,20693.0,0.4297239]
[1673780985112,0.003,20695.0,20693.0,0.79325877]
[1673780985385,0.40771746,20697.0,20693.0,1.33590125]
[1673780985644,0.003,20694.0,20693.0,1.33590125]
[1673780986186,0.003,20694.0,20693.0,1.54778364]
[1673780986442,0.40771746,20697.0,20693.0,1.54778364]
[1673780986697,0.98259361,20696.0,20693.0,1.54878364]
[1673780986966,0.40771746,20697.0,20693.0,1.54778364]
[1673780987247,0.96660264,20696.0,20694.0,0.48406674]
[1673780987988,0.00054749,20695.0,20692.0,0.10420294]
[1673780988250,0.96660264,20694.0,20693.0,0.001]
[1673780988524,0.96660264,20694.0,20692.0,0.33610229]
[1673780989037,0.00054749,20695.0,20692.0,0.33610229]
[1673780989038,0.96715013,20695.0,20692.0,0.33610229]
[1673780989307,0.96670098,20694.0,20692.0,0.33610229]
[1673780989567,0.96670098,20695.0,20692.0,0.33610229]
[1673780989839,0.96670873,20694.0,20692.0,0.46650962]
[1673780990100,1.45794018,20695.0,20692.0,0.46650962]
[1673780990362,1.36085428,20694.0,20692.0,0.46650962]
[1673780990655,0.3941495,20694.0,20692.0,0.46650962]
[1673780990918,0.3941495,20694.0,20690.0,0.0014]
[1673780991412,0.96674406,20693.0,20690.0,0.0014]
[1673780991416,0.96674406,20693.0,20690.0,0.23471152]
[1673780991677,1.6412735,20693.0,20690.0,0.23471152]
[1673780991942,0.48380349,20693.0,20690.0,0.23471152]
[1673780992446,0.37095776,20692.0,20690.0,0.23471152]
[1673780992692,0.37095776,20692.0,20690.0,0.28571152]
[1673780993675,0.37150525,20692.0,20690.0,0.23471152]
[1673780993929,0.37495776,20692.0,20690.0,0.28571152]
[1673780995396,0.004,20692.0,20690.0,0.28571152]
[1673780995942,0.004,20692.0,20691.0,0.34283832]
[1673780996245,0.004,20692.0,20691.0,0.47902935]
[1673780997024,0.00454749,20692.0,20691.0,0.47902935]
[1673780997284,0.003,20692.0,20691.0,0.53002935]
[1673780998053,0.003,20692.0,20691.0,1.01333035]
[1673780998549,0.00291315,20692.0,20691.0,1.01333035]
[1673781000618,0.00291315,20692.0,20691.0,1.0132447]
[1673781001119,0.00291315,20692.0,20691.0,0.5299437]
[1673781001622,0.00291315,20692.0,20691.0,0.39375267]
[1673781003148,0.00291315,20692.0,20691.0,0.051]
[1673781005970,0.00291315,20692.0,20691.0,0.634301]
[1673781006219,0.00291315,20692.0,20691.0,1.017602]
[1673781006748,0.00291315,20692.0,20691.0,1.39290654]
[1673781007011,0.00291315,20692.0,20691.0,1.83803526]
[1673781007265,0.00291315,20692.0,20691.0,1.69357457]
[1673781007505,0.00291315,20692.0,20691.0,1.83803526]
[1673781008274,0.00291315,20692.0,20691.0,1.46273072]
[1673781008524,0.00291315,20692.0,20691.0,1.75050237]
[1673781009020,0.00291315,20692.0,20691.0,1.46273072]
[1673781009267,0.00291315,20692.0,20691.0,1.82442629]
[1673781010084,0.00291315,20692.0,20691.0,1.46273072]
[1673781010622,0.00291315,20692.0,20691.0,1.81637545]
[1673781010869,0.00291315,20692.0,20691.0,1.46273072]
[1673781011122,0.00291315,20692.0,20691.0,1.67942176]
[1673781011840,0.00291315,20692.0,20691.0,1.76115553]
[1673781011841,0.00291315,20692.0,20691.0,1.83338588]
[1673781012615,0.00291315,20692.0,20691.0,1.97806862]
[1673781012872,0.00291315,20692.0,20691.0,1.97807267]
[1673781013130,0.00291315,20692.0,20691.0,1.83338588]
[1673781013386,0.00291315,20692.0,20691.0,1.97807523]
[1673781013644,0.00291315,20692.0,20691.0,1.76138419]
[1673781015078,0.00291315,20692.0,20691.0,1.97807523]
[1673781015334,0.00291315,20692.0,20691.0,1.67965042]
[1673781015593,0.00291315,20692.0,20691.0,1.97230867]
[1673781015856,0.00291315,20692.0,20691.0,1.81953505]
[1673781016116,0.00291315,20692.0,20691.0,1.98130176]
[1673781016634,0.00291315,20692.0,20691.0,2.12111074]
[1673781016890,0.00291315,20692.0,20691.0,1.83653676]
[1673781017153,0.00291315,20692.0,20691.0,1.95904151]
[1673781017409,0.00291315,20692.0,20691.0,1.60284401]
[1673781018208,0.00291315,20692.0,20691.0,1.91013706]
[1673781018463,0.19418659,20692.0,20691.0,2.27203491]
[1673781018726,0.00291315,20692.0,20691.0,1.14226208]
[1673781019266,0.00291315,20692.0,20691.0,1.28702361]
[1673781019523,0.00291315,20692.0,20691.0,1.14226208]
[1673781021530,0.00283265,20692.0,20691.0,1.14226208]
[1673781024717,0.00283265,20692.0,20691.0,1.98746093]
[1673781024977,0.00283265,20692.0,20691.0,1.77032461]
[1673781025233,0.00283265,20692.0,20691.0,1.8426994]
[1673781025498,0.00283265,20692.0,20691.0,2.12727338]
[1673781025770,0.00283265,20692.0,20691.0,1.98747609]
[1673781027394,0.00283265,20692.0,20691.0,1.62556308]
[1673781027646,0.63871553,20696.0,20695.0,0.25776907]
[1673781027909,2.31911096,20696.0,20695.0,0.02577692]
[1673781028168,2.285531,20696.0,20695.0,1e-08]
[1673781028430,1.57238245,20696.0,20695.0,1e-08]
[1673781028699,1.25112045,20696.0,20695.0,1e-08]
[1673781029210,1.25057296,20696.0,20695.0,1e-08]
[1673781029471,1.57238245,20696.0,20695.0,1e-08]
[1673781030053,1.61038245,20696.0,20695.0,0.00500001]
[1673781031455,1.32650888,20696.0,20695.0,0.00500001]
[1673781031973,3.0440535,20696.0,20695.0,0.00500001]
[1673781032531,1.97551188,20696.0,20695.0,0.00500001]
[1673781032785,1.65424988,20696.0,20695.0,0.00500001]
[1673781035232,1.97551188,20696.0,20695.0,0.00500001]
[1673781035501,1.86961988,20696.0,20695.0,0.00500001]
[1673781035768,1.64924988,20696.0,20695.0,0.00500001]
[1673781036716,1.58180428,20696.0,20695.0,0.00500001]
[1673781037501,2.18693985,20696.0,20695.0,0.00500001]
[1673781037818,1.90306628,20696.0,20695.0,0.00500001]
[1673781039836,1.90251879,20696.0,20695.0,0.00500001]
[1673781040649,3.03850084,20696.0,20695.0,0.00500001]
[1673781041954,2.18638166,20696.0,20695.0,0.00500001]
[1673781042719,1.96996439,20696.0,20695.0,0.00500001]
[1673781043022,3.03849629,20696.0,20695.0,0.00500001]
[1673781043289,3.52222878,20696.0,20695.0,0.00500001]
[1673781043545,3.71503507,20696.0,20695.0,0.00500001]
[1673781043804,3.36226313,20696.0,20695.0,0.00500001]
[1673781044585,3.30156882,20696.0,20695.0,0.00500001]
[1673781044595,3.73202311,20696.0,20695.0,0.00500001]
[1673781045127,3.43202311,20696.0,20695.0,0.00500001]
[1673781045380,3.30156882,20696.0,20695.0,0.00500001]
[1673781045625,4.75159275,20696.0,20695.0,0.00500001]
[1673781045880,3.30156882,20696.0,20695.0,0.00500001]
[1673781046146,4.75159275,20696.0,20695.0,0.00500001]
[1673781046651,3.30156882,20696.0,20695.0,0.00500001]
[1673781046926,3.73202311,20696.0,20695.0,0.00500001]
[1673781047180,3.73202311,20696.0,20690.0,0.42615433]
[1673781047181,0.01000002,20694.0,20690.0,0.42615433]
[1673781047446,0.01000002,20694.0,20691.0,0.09094853]
[1673781047447,0.76674107,20693.0,20691.0,0.09094853]
[1673781047719,0.53764907,20692.0,20690.0,0.0014]
[1673781047979,0.35965972,20691.0,20690.0,0.0014]
[1673781048511,0.14483721,20691.0,20690.0,0.0014]
[1673781048774,0.00054749,20691.0,20690.0,0.0014]
[1673781049032,0.14483721,20691.0,20690.0,0.0014]
[1673781049292,0.14883721,20691.0,20690.0,0.0504]
[1673781049559,0.00454749,20691.0,20690.0,0.0504]
[1673781049821,0.004,20691.0,20690.0,0.0504]
[1673781050074,0.00054749,20691.0,20690.0,0.0014]
[1673781050336,0.4277912,20691.0,20690.0,0.13587]
[1673781050588,0.015,20691.0,20690.0,0.06808914]
[1673781052871,0.015,20691.0,20690.0,0.0024]
[1673781053141,0.01554749,20691.0,20690.0,0.0024]
[1673781054159,0.37813165,20691.0,20690.0,0.0024]
[1673781055714,1.34498672,20691.0,20690.0,0.0024]
[1673781055970,1.34443923,20691.0,20690.0,0.0024]
[1673781056495,0.98185507,20691.0,20690.0,0.67266182]
[1673781056767,0.015,20691.0,20690.0,0.67266182]
[1673781058087,1.65589578,20691.0,20690.0,0.0024]
[1673781058357,2.26973283,20691.0,20690.0,0.0024]
[1673781058664,4.09900412,20691.0,20690.0,1e-08]
[1673781058877,3.52847003,20691.0,20690.0,1e-08]
[1673781059397,3.93233263,20691.0,20690.0,1e-08]
[1673781059657,3.91788012,20691.0,20686.0,0.01949263]
[1673781059965,0.35989035,20689.0,20686.0,0.01949263]
[1673781060164,1.94789635,20688.0,20686.0,0.01949263]
[1673781060438,1.18223883,20687.0,20686.0,0.01949263]
[1673781060710,1.58831543,20687.0,20686.0,0.01949263]
[1673781060981,2.07171043,20687.0,20686.0,0.01949263]
[1673781061233,2.07190696,20687.0,20686.0,0.01949263]
[1673781061488,2.55530196,20687.0,20686.0,0.01949263]
[1673781062006,2.33993196,20687.0,20686.0,0.01949263]
[1673781062273,1.2107336,20687.0,20686.0,0.02249263]
[1673781062549,1.2107336,20687.0,20686.0,0.01949263]
[1673781062784,0.4060766,20687.0,20686.0,0.01949263]
[1673781063307,0.46552911,20687.0,20686.0,0.02249263]
[1673781063809,0.72679111,20687.0,20686.0,0.01949263]
[1673781064343,0.40552911,20687.0,20686.0,0.01949263]
[1673781064589,0.72679111,20687.0,20686.0,0.01949263]
[1673781064845,0.46552911,20687.0,20686.0,0.02249263]
[1673781065115,0.40552911,20687.0,20686.0,0.01949263]
[1673781065380,0.46552911,20687.0,20686.0,0.02249263]
[1673781065639,0.40552911,20687.0,20686.0,0.01949263]
[1673781065900,0.46552911,20687.0,20686.0,0.02249263]
[1673781066162,0.46552911,20687.0,20686.0,0.01949263]
[1673781066163,0.40552911,20687.0,20686.0,0.01949263]
[1673781066436,0.46552911,20687.0,20686.0,0.02249263]
[1673781066898,0.4660766,20687.0,20686.0,0.02249263]
[1673781069435,0.7873386,20687.0,20686.0,0.02249263]
[1673781069697,0.4660766,20687.0,20686.0,0.02249263]
[1673781070491,0.7873386,20687.0,20686.0,0.02249263]
[1673781071794,1.7541286,20687.0,20686.0,0.02249263]
[1673781072059,2.315723,20687.0,20686.0,0.02249263]
[1673781072602,1.83305555,20687.0,20686.0,0.02249263]
[1673781073116,2.8001693,20687.0,20686.0,0.02249263]
[1673781074678,2.31571324,20687.0,20686.0,0.01949263]
[1673781074932,2.77103119,20687.0,20686.0,0.01949263]
[1673781075185,2.68303119,20687.0,20686.0,0.01949263]
[1673781075560,3.07103119,20687.0,20686.0,0.01949263]
[1673781076243,3.15848029,20687.0,20686.0,0.01949263]
[1673781076483,2.78766938,20687.0,20686.0,0.01949263]
[1673781076754,2.64371324,20687.0,20686.0,0.01949263]
[1673781077274,1.85112419,20687.0,20686.0,0.01949263]
[1673781077529,1.52983627,20687.0,20686.0,0.01949263]
[1673781078317,1.76309827,20687.0,20686.0,0.01949263]
[1673781078581,1.85109827,20687.0,20686.0,0.01949263]
[1673781080398,1.52983627,20687.0,20686.0,0.01949263]
[1673781080657,1.85109827,20687.0,20686.0,0.01949263]
[1673781080915,1.85164576,20687.0,20686.0,0.01940627]
[1673781082446,2.63504076,20687.0,20686.0,0.01940627]
[1673781082711,2.7789969,20687.0,20686.0,0.01940627]
[1673781083212,2.9623919,20687.0,20686.0,0.01940627]
[1673781083744,2.81843576,20687.0,20686.0,0.01940627]
[1673781084785,1.85164576,20687.0,20686.0,0.01940627]
[1673781085042,1.52983627,20687.0,20686.0,0.01940627]
[1673781086064,1.52983627,20687.0,20686.0,0.06772431]
[1673781086835,1.52983627,20687.0,20686.0,0.01940627]
[1673781087805,1.85109827,20687.0,20686.0,0.01940627]
[1673781088064,1.52983627,20687.0,20686.0,0.01940627]
[1673781088308,1.53038376,20687.0,20686.0,0.01940627]
[1673781088566,1.53038376,20687.0,20686.0,1e-08]
[1673781089321,1.05563532,20687.0,20686.0,1e-08]
[1673781091889,1.37689732,20687.0,20686.0,1e-08]
[1673781092888,1.52085346,20687.0,20686.0,1e-08]
[1673781093919,1.73678767,20687.0,20686.0,1e-08]
[1673781094172,1.19959146,20687.0,20686.0,1e-08]
[1673781094425,1.05563532,20687.0,20686.0,1e-08]
[1673781095447,1.19959146,20687.0,20686.0,1e-08]
[1673781096758,1.41552567,20687.0,20686.0,1e-08]
[1673781097022,1.19959146,20687.0,20686.0,1e-08]
[1673781097533,1.27156953,20687.0,20686.0,1e-08]
[1673781097787,1.41568525,20687.0,20686.0,1e-08]
[1673781098036,1.19975104,20687.0,20686.0,1e-08]
[1673781098284,1.41568525,20687.0,20686.0,1e-08]
[1673781098805,1.27156953,20687.0,20686.0,1e-08]
[1673781099323,1.55948181,20687.0,20686.0,1e-08]
[1673781099580,1.41569357,20687.0,20686.0,1e-08]
[1673781100109,1.27156953,20687.0,20686.0,1e-08]
[1673781100364,1.05508783,20687.0,20686.0,0.5278625]
[1673781100890,1.05508783,20687.0,20686.0,1.56243201]
[1673781100891,0.088,20687.0,20686.0,1.56243201]
[1673781101153,0.14412498,20691.0,20686.0,1.34529569]
[1673781101411,0.008,20687.0,20686.0,1.42791921]
[1673781101656,0.008,20687.0,20686.0,2.09819493]
[1673781101912,0.008,20687.0,20686.0,1.95911223]
[1673781102524,0.43041186,20691.0,20686.0,1.5675474]
[1673781102710,0.57453684,20691.0,20686.0,1.42258387]
[1673781102964,0.96688167,20690.0,20686.0,1.42258387]
[1673781103242,0.96688167,20690.0,20687.0,0.14474736]
[1673781103501,0.96688167,20690.0,20688.0,0.966744]
[1673781103763,0.43041186,20691.0,20688.0,0.966744]
[1673781104036,0.43041186,20691.0,20688.0,1.22355048]
[1673781104821,0.43041186,20691.0,20689.0,0.49433214]
[1673781105128,0.96687879,20690.0,20689.0,0.49433214]
[1673781105339,0.97587879,20690.0,20689.0,0.49433214]
[1673781105607,0.96687879,20690.0,20689.0,0.49433214]
[1673781105867,0.009,20691.0,20689.0,0.49433214]
[1673781106124,0.49957233,20692.0,20690.0,0.09886811]
[1673781106649,0.96685138,20691.0,20690.0,0.09886811]
[1673781107676,0.49957233,20692.0,20690.0,0.09886811]
[1673781108689,0.57057233,20692.0,20690.0,0.54177705]
[1673781109485,0.57057233,20692.0,20690.0,0.44290894]
[1673781110566,0.071,20692.0,20690.0,0.44290894]
[1673781111046,0.071,20692.0,20691.0,0.43986472]
[1673781112087,0.3652212,20693.0,20691.0,0.43986472]
[1673781112362,0.08,20692.0,20691.0,0.44086472]
[1673781112916,0.07989793,20692.0,20691.0,0.44086472]
[1673781113168,0.3652212,20693.0,20691.0,0.44086472]
[1673781113419,0.4452212,20693.0,20691.0,0.44086472]
[1673781113677,0.3652212,20693.0,20691.0,0.43986472]
[1673781113937,0.08,20692.0,20691.0,0.44086472]
[1673781114416,0.08,20692.0,20691.0,0.40086472]
[1673781114672,0.3652212,20693.0,20691.0,0.39986472]
[1673781114928,0.4452212,20693.0,20691.0,0.40086472]
[1673781115197,0.3652212,20693.0,20692.0,0.13674747]
[1673781115523,0.08,20692.0,20691.0,0.88416572]
[1673781115708,0.44457278,20694.0,20691.0,0.88316572]
[1673781115709,0.00054749,20693.0,20691.0,0.88316572]
[1673781115967,0.08,20693.0,20691.0,0.001]
[1673781116225,0.96688177,20692.0,20688.0,0.90572839]
[1673781116487,0.51198795,20691.0,20688.0,1.3216289]
[1673781116758,0.19072595,20691.0,20688.0,1.3216289]
[1673781117008,0.19072595,20691.0,20689.0,0.35937049]
[1673781117262,0.3,20692.0,20689.0,0.35937049]
[1673781117536,1.89106709,20691.0,20688.0,0.49861387]
[1673781117793,0.92415061,20691.0,20688.0,0.60620403]
[1673781118354,0.93315061,20691.0,20688.0,0.50961387]
[1673781120179,0.35746402,20690.0,20688.0,0.50961387]
[1673781120447,0.19072595,20689.0,20688.0,0.011]
[1673781120854,1.287958,20689.0,20688.0,1e-08]
[1673781120860,2.25499034,20689.0,20688.0,1e-08]
[1673781121311,2.25553783,20689.0,20688.0,1e-08]
[1673781122272,2.25553783,20689.0,20686.0,1e-08]
[1673781122479,0.21537,20688.0,20686.0,1e-08]
[1673781122703,0.321262,20687.0,20686.0,1e-08]
[1673781122926,1.35571445,20689.0,20686.0,1e-08]
[1673781123159,1.44571445,20689.0,20686.0,1e-08]
[1673781123367,0.321262,20688.0,20686.0,1e-08]
[1673781123583,0.21537,20687.0,20686.0,1e-08]
[1673781124025,1.49988343,20689.0,20686.0,1e-08]
[1673781124240,0.96706236,20688.0,20686.0,1e-08]
[1673781124455,0.321262,20687.0,20686.0,1e-08]
[1673781124685,1.35873345,20689.0,20686.0,1e-08]
[1673781124898,0.96705816,20688.0,20686.0,1e-08]
[1673781125115,0.321262,20687.0,20686.0,1e-08]
[1673781125295,0.38533682,20688.0,20686.0,1e-08]
[1673781127039,0.003,20687.0,20686.0,1e-08]
[1673781127286,0.38533682,20688.0,20686.0,1e-08]
[1673781127765,0.38833682,20688.0,20686.0,1e-08]
[1673781128012,0.38533682,20688.0,20686.0,1e-08]
[1673781128264,0.003,20687.0,20686.0,1e-08]
[1673781128556,0.62802047,20689.0,20686.0,1e-08]
[1673781128794,0.86064547,20689.0,20686.0,0.0416518]
[1673781129532,0.003,20688.0,20686.0,0.0416518]
[1673781130019,0.86064547,20689.0,20686.0,0.0416518]
[1673781130238,0.86064547,20689.0,20686.0,1e-08]
[1673781130486,0.321262,20688.0,20686.0,1e-08]
[1673781130748,0.86064547,20689.0,20686.0,1e-08]
[1673781131028,1.00777045,20689.0,20686.0,1e-08]
[1673781131284,1.2882978,20688.0,20686.0,1e-08]
[1673781131536,1.00477045,20689.0,20686.0,1e-08]
[1673781131800,0.86064547,20689.0,20686.0,1e-08]
[1673781132596,0.97003227,20688.0,20686.0,1e-08]
[1673781132851,0.003,20688.0,20686.0,1e-08]
[1673781133626,0.52142245,20689.0,20686.0,1e-08]
[1673781133895,0.37729747,20689.0,20686.0,0.0899963]
[1673781134167,0.003,20688.0,20686.0,1e-08]
[1673781134417,0.37729747,20689.0,20686.0,1e-08]
[1673781135488,0.52442245,20689.0,20686.0,1e-08]
[1673781135757,0.38029747,20689.0,20686.0,1e-08]
[1673781136276,1.00777345,20689.0,20686.0,1e-08]
[1673781136560,0.96701474,20688.0,20686.0,0.40573701]
[1673781136817,0.86364847,20689.0,20686.0,0.40573701]
[1673781137576,0.9670125,20688.0,20686.0,0.40573701]
[1673781137850,0.321262,20687.0,20686.0,0.40573701]
[1673781138105,1.22370766,20689.0,20686.0,0.40573701]
[1673781138352,0.96703982,20688.0,20686.0,0.40573701]
[1673781138857,0.97003982,20688.0,20686.0,0.40573701]
[1673781139121,0.37729747,20689.0,20686.0,0.40573701]
[1673781139366,0.003,20689.0,20686.0,1.05751943]
[1673781139615,0.59795264,20691.0,20686.0,1.05751943]
[1673781139875,0.003,20688.0,20687.0,0.15586117]
[1673781140129,0.59795264,20691.0,20687.0,0.63925617]
[1673781140390,0.003,20689.0,20687.0,1.12265117]
[1673781140631,0.003,20689.0,20688.0,0.2165881]
[1673781141426,0.003,20689.0,20688.0,0.6656736]
[1673781141713,0.59795264,20691.0,20688.0,0.6656736]
[1673781141961,0.45382766,20691.0,20688.0,0.6656736]
[1673781142228,0.09,20689.0,20688.0,0.6656736]
[1673781142489,0.59795264,20691.0,20688.0,1.1490446]
[1673781142737,0.96691288,20690.0,20689.0,0.16324166]
[1673781142982,0.45382766,20691.0,20689.0,0.16324166]
[1673781143243,0.36005919,20692.0,20689.0,0.16324166]
[1673781143518,0.36005919,20692.0,20690.0,0.10956982]
[1673781143519,0.38682557,20692.0,20690.0,0.10956982]
[1673781143802,0.38682557,20692.0,20690.0,0.96853403]
[1673781144042,0.38675357,20692.0,20690.0,0.96853403]
[1673781145111,0.009,20692.0,20690.0,0.96853403]
[1673781145314,0.84877377,20694.0,20691.0,0.1451859]
[1673781145595,0.01,20692.0,20691.0,0.6284859]
[1673781146077,0.009,20692.0,20691.0,0.6284859]
[1673781146372,0.36005919,20694.0,20691.0,0.6284859]
[1673781146589,0.62552312,20694.0,20692.0,0.14874501]
[1673781146845,0.96680244,20693.0,20692.0,0.14874501]
[1673781147103,0.96680244,20693.0,20691.0,1.00029859]
[1673781147362,0.009,20692.0,20691.0,1.00029859]
[1673781147662,0.84200482,20694.0,20691.0,1.00029859]
[1673781147868,1.04381095,20693.0,20691.0,1.00029859]
[1673781148123,0.84145733,20694.0,20691.0,1.00029859]
[1673781148363,0.96681414,20693.0,20692.0,0.14836146]
[1673781148631,0.96736163,20693.0,20692.0,0.14836146]
[1673781148897,0.96981414,20693.0,20692.0,0.14836146]
[1673781149139,0.96681414,20693.0,20692.0,0.14836146]
[1673781149397,1.04381414,20693.0,20692.0,0.60156721]
[1673781149646,1.04381414,20693.0,20692.0,1.11491746]
[1673781149920,0.077,20693.0,20692.0,1.11491746]
[1673781150705,0.71383487,20695.0,20692.0,1.11491746]
[1673781150965,0.71383487,20695.0,20693.0,0.15981965]
[1673781151212,0.71383487,20695.0,20694.0,0.966462]
[1673781151518,0.71383487,20695.0,20694.0,1.45362402]
[1673781151993,0.80383487,20695.0,20694.0,1.45362402]
[1673781152225,0.71383487,20695.0,20694.0,1.45362402]
[1673781152489,0.80483487,20695.0,20694.0,1.67813233]
[1673781152800,0.80483487,20695.0,20694.0,1.56526224]
[1673781153002,0.80483487,20695.0,20694.0,1.56514738]
[1673781153804,0.71383487,20695.0,20694.0,1.56514738]
[1673781154095,0.72183487,20695.0,20694.0,1.57914738]
[1673781154609,0.72983487,20695.0,20694.0,1.59314738]
[1673781156279,0.72983487,20695.0,20694.0,1.36863907]
[1673781160402,0.72983487,20695.0,20694.0,1.36615078]
[1673781161650,0.71383487,20695.0,20694.0,1.33815078]
[1673781162902,0.71383487,20695.0,20694.0,0.96634714]
[1673781163413,0.71383487,20695.0,20694.0,1.4332663]
[1673781163691,0.71383487,20695.0,20694.0,1.6892266]
[1673781163923,0.72083487,20695.0,20694.0,1.4472663]
[1673781164188,1.21755757,20695.0,20694.0,0.014]
[1673781165212,1.21055757,20695.0,20692.0,0.42101491]
[1673781165475,1.21855757,20695.0,20694.0,0.013]
[1673781165709,1.21910506,20695.0,20694.0,0.013]
[1673781165999,1.21855757,20695.0,20694.0,0.013]
[1673781166513,1.21055757,20695.0,20692.0,0.5856883]
[1673781166842,1.21755757,20695.0,20692.0,0.5856883]
[1673781167053,0.00054749,20694.0,20693.0,0.05856883]
[1673781167322,1.69377057,20695.0,20693.0,0.05856883]
[1673781167842,1.70177057,20695.0,20693.0,0.05856883]
[1673781168151,1.69377057,20695.0,20693.0,0.05856883]
[1673781168415,0.008,20694.0,20693.0,0.07056883]
[1673781169194,0.008,20694.0,20693.0,0.07034496]
[1673781169711,1.69377057,20695.0,20693.0,0.05834496]
[1673781169966,1.69377057,20695.0,20693.0,0.07034496]
[1673781169967,0.46417468,20694.0,20693.0,0.07034496]
[1673781170227,0.46417468,20694.0,20693.0,0.05834496]
[1673781170479,0.47217468,20694.0,20693.0,0.07034496]
[1673781170744,0.46417468,20694.0,20693.0,0.05834496]
[1673781171227,0.46417468,20694.0,20693.0,0.07034496]
[1673781171490,0.46417468,20694.0,20692.0,0.42101491]
[1673781171745,0.47417468,20694.0,20693.0,0.12424]
[1673781172771,0.47417468,20694.0,20693.0,0.003]
[1673781173032,0.46417468,20694.0,20692.0,0.42101491]
[1673781173544,0.46417468,20694.0,20693.0,0.003]
[1673781173767,0.47417468,20694.0,20692.0,0.42101491]
[1673781174054,0.47417468,20694.0,20692.0,0.43401491]
[1673781174314,0.48217468,20694.0,20692.0,0.43401491]
[1673781174563,0.47217468,20694.0,20692.0,0.43401491]
[1673781174819,0.46417468,20694.0,20692.0,0.42101491]
[1673781175066,0.47417468,20694.0,20693.0,0.003]
[1673781175325,0.47472217,20694.0,20693.0,0.003]
[1673781175593,1.44088717,20694.0,20693.0,0.003]
[1673781176390,1.44143466,20694.0,20693.0,0.003]
[1673781176892,1.43088717,20694.0,20693.0,0.12124]
[1673781177169,0.0515,20694.0,20693.0,0.12124]
[1673781178416,0.0595,20694.0,20693.0,0.12124]
[1673781178672,1.0181625,20694.0,20693.0,1.008496]
[1673781179236,1.0181625,20694.0,20693.0,1.2059997]
[1673781179803,0.0515,20694.0,20693.0,1.2059997]
[1673781180005,0.0615,20694.0,20693.0,1.2089997]
[1673781180515,1.02814187,20694.0,20693.0,1.2089997]
[1673781180772,1.01813519,20694.0,20693.0,1.2059997]
[1673781181030,1.02813519,20694.0,20693.0,1.2089997]
[1673781181280,1.02813519,20694.0,20693.0,1.6922547]
[1673781182464,0.0615,20694.0,20693.0,1.6922547]
[1673781182990,1.02812297,20694.0,20693.0,1.6922547]
[1673781183788,1.07418013,20694.0,20693.0,1.6922547]
[1673781184050,0.10755716,20694.0,20693.0,1.6922547]
[1673781184571,1.07416384,20694.0,20693.0,1.6922547]
[1673781184826,0.10755716,20694.0,20693.0,1.6922547]
[1673781185595,0.10755716,20694.0,20693.0,1.2882537]
[1673781185882,0.10755716,20694.0,20693.0,1.43300106]
[1673781186186,0.10755716,20694.0,20693.0,1.2882537]
[1673781186448,0.10755716,20694.0,20693.0,1.43300106]
[1673781186720,0.10755716,20694.0,20693.0,1.65011586]
[1673781187570,0.10755716,20694.0,20693.0,1.79507939]
[1673781187825,0.10755716,20694.0,20693.0,2.09500146]
[1673781188594,0.10755716,20694.0,20693.0,1.79200146]
[1673781188849,0.10455716,20694.0,20693.0,1.80700146]
[1673781189107,0.09755716,20694.0,20693.0,1.79200146]
[1673781189364,0.10455716,20694.0,20693.0,2.10700146]
[1673781189882,0.10455716,20694.0,20693.0,1.88996459]
[1673781190172,0.71383487,20695.0,20694.0,0.2946454]
[1673781190173,0.62178178,20695.0,20694.0,0.2946454]
[1673781190425,0.62178178,20695.0,20694.0,2.14680909]
[1673781190685,1.00289048,20696.0,20694.0,1.85216369]
[1673781190937,1.00289048,20696.0,20695.0,0.36144433]
[1673781191193,1.00289048,20696.0,20695.0,2.01701607]
[1673781191447,1.00289048,20696.0,20695.0,2.01701654]
[1673781191710,1.00289048,20696.0,20695.0,2.32627586]
[1673781191970,1.00289048,20696.0,20695.0,1.91701654]
[1673781192497,1.00289048,20696.0,20695.0,1.55557221]
[1673781192826,1.00289048,20696.0,20695.0,1.77234026]
[1673781193550,1.00289048,20696.0,20695.0,2.25804195]
[1673781194093,1.00289048,20696.0,20695.0,1.99200981]
[1673781194344,1.00889048,20696.0,20695.0,1.99200981]
[1673781194624,1.00889048,20696.0,20695.0,2.1364702]
[1673781195161,1.00889048,20696.0,20695.0,1.91970215]
[1673781195702,1.00889048,20696.0,20695.0,2.37960291]
[1673781195959,1.00889048,20696.0,20695.0,1.91970215]
[1673781196481,0.96232528,20696.0,20695.0,1.91970215]
[1673781196735,0.96232528,20696.0,20695.0,2.1364702]
[1673781197542,1.15305123,20696.0,20695.0,1.59317874]
[1673781197805,0.96232528,20696.0,20695.0,1.37641069]
[1673781198602,0.96232528,20696.0,20695.0,1.13394733]
[1673781198860,0.96232528,20696.0,20695.0,1.55464917]
[1673781199125,0.95632528,20696.0,20695.0,1.83264917]
[1673781199510,0.96332528,20696.0,20695.0,1.85464917]
[1673781200190,0.00369263,20697.0,20695.0,1.83264917]
[1673781200449,0.00369263,20697.0,20696.0,1.02349169]
[1673781200714,0.00369263,20697.0,20696.0,2.13426895]
[1673781201479,0.00369263,20697.0,20696.0,1.98986169]
[1673781201730,0.00969263,20697.0,20696.0,2.01786169]
[1673781203810,0.00969263,20697.0,20696.0,1.71786169]
[1673781204060,0.00969263,20697.0,20696.0,2.01786169]
[1673781205912,0.00969263,20697.0,20696.0,2.2141898]
[1673781206399,0.00969263,20697.0,20696.0,1.73698811]
[1673781206858,0.00969263,20697.0,20696.0,1.24066]
[1673781207636,0.00969263,20697.0,20696.0,1.4182091]
[1673781207897,0.00969263,20697.0,20696.0,0.511185]
[1673781209206,0.43795703,20697.0,20696.0,0.511185]
[1673781209733,0.43195703,20697.0,20696.0,0.483185]
[1673781209978,0.43795703,20697.0,20696.0,0.028]